Cogmind - Beta 15 @@@ ROGUE MODE // 2025.05.07 @ 15:18:13 Player: winnking222 Result: Destroyed by SG-DN5(j) with Overtuned Pulse Rifle Performance ------------- Evolutions (0) 0 Regions Visited (3) 600 Robots Destroyed (24) 120 Value Destroyed (717) 717 Prototype IDs (20) 400 Alien Tech Used (0) 0 Bonus (800) 800 TOTAL SCORE: 2637 Bonus ------- Registered with UFD 300 Met Optimus in HQ 500 Cogmind --------- Core Integrity 0/250 Matter 225/300 Energy 290/290 System Corruption 0% Temperature Warm (186) Movement Treading (320) Ox2 Location -7/Scraptown Parts ------- > --- POWER (1) -------- Improved Deuterium Engine > --- PROPULSION (2) --- Medium Treads > --- UTILITY (2) ------ High-capacity Storage Unit Salvage Targeting Computer > --- WEAPON (2) ------- Overtuned Barrage Gun Advanced Assault Cannon > --- INVENTORY (20) --- Improved Deuterium Engine Overtuned Treads Overtuned Treads Overtuned Treads Overtuned Treads Overtuned Treads Scrap Suit Advanced Visual Processing Unit 0b10 Decoder Chip [Skirmisher] Kinecellerator Makeshift Light Armor Plating Makeshift Light Armor Plating Authchip [Propulsion] Overtuned Barrage Gun Hypervelocity Gauss Rifle CPS Tube (2) DRS Beacon (Ready) Peak State ------------ > --- POWER ------------ Improved Deuterium Engine > --- PROPULSION ------- Medium Treads Medium Treads > --- UTILITY ---------- High-capacity Storage Unit Salvage Targeting Computer > --- WEAPON ----------- Advanced Assault Cannon Slug Cannon > --- INVENTORY -------- Light Nuclear Core Improved Deuterium Engine Light Fission Core Light Treads Improved Aluminum Leg Titanium Leg Improved Titanium Leg Scrap Suit Advanced Visual Processing Unit 0b10 Decoder Chip [Skirmisher] Kinecellerator Light Armor Plating Makeshift Light Armor Plating Authchip [Propulsion] Subdweller Machine Gun Hypervelocity Gauss Rifle Advanced Assault Cannon CPS Tube DRS Beacon [Rating: 30] Favorites ----------- Power Ion Engine Engine Ion Engine Power Core Light Fission Core Propulsion Light Treads Treads Light Treads Leg Improved Aluminum Leg Utility Scrap Shield Device Scrap Suit Storage High-capacity Storage Unit Processor Salvage Targeting Computer Hackware Makeshift System Shield Protection Scrap Shield Weapon Barrage Gun Energy Gun Medium Laser Energy Cannon Subdweller Beam Cannon Ballistic Gun Barrage Gun Ballistic Cannon Advanced Assault Cannon Build | -11 -10 -10 -7 ------- Run | Yrd Mat Sub Scr Slots Evolved . | . . . . Power . | . . . . Propulsion . | . . . . Utility . | . . . . Weapon . | . . . . Parts Attached 32 | 6 1 11 14 Power 5 | 1 1 1 2 Engine 4 | 1 1 1 1 Core 1 | . . . 1 Reactor . | . . . . Propulsion 7 | 2 . 2 3 Treads 6 | 2 . 2 2 Leg 1 | . . . 1 Wheel . | . . . . Hover . | . . . . Flight . | . . . . Utility 9 | 1 . 3 5 Device 2 | . . . 2 Storage 2 | 1 . . 1 Processor 1 | . . . 1 Hackware 1 | . . 1 . Protection 3 | . . 2 1 Artifact . | . . . . Weapon 11 | 2 . 5 4 Energy Gun 1 | 1 . . . Energy Cannon 2 | . . 2 . Ballistic Gun 4 | 1 . 2 1 Ballistic Cannon 4 | . . 1 3 Launcher . | . . . . Special Weapon . | . . . . Impact Weapon . | . . . . Slashing Weapon . | . . . . Piercing Weapon . | . . . . Special Melee Weapon . | . . . . Unidentified Prototypes . | . . . . Parts Lost 11 | . . 8 3 Power 1 | . . 1 . Propulsion 3 | . . 2 1 Utility 2 | . . 2 . Weapon 5 | . . 3 2 Highest Loss Streak 7 | . . 7 3 To Critical Strikes . | . . . . Average Backups 4 | 1 1 3 5 Power . | . 1 . . Propulsion . | . . . . Utility 1 | . . . 2 Weapon 1 | . . 2 1 Tool/Special . | . . . . Unused Backups 22 | . . 2 20 Power 2 | . . . 2 Propulsion 8 | . . . 8 Utility 7 | . . 1 6 Weapon 4 | . . 1 3 Tool/Special 1 | . . . 1 Average Slot Usage (%) 79 | . 76 79 79 Engine 10 | . 11 13 8 Core 2 | . . . 4 Treads 20 | . 26 26 16 Leg 2 | . . . 4 Storage 4 | . 14 2 6 Processor 1 | . . . 2 Hackware 3 | . . . 5 Protection 4 | . . 8 1 Energy Gun 1 | . 11 1 . Energy Cannon 4 | . . 1 6 Ballistic Gun 10 | . 11 15 6 Ballistic Cannon 11 | . . 8 15 Peak Build Rating 30 | 6 6 16 30 Average Rating 14 | 4 5 11 17 On Entrance 5 | . 6 6 11 Naked Turns . | . . . . Heaviest Build 63 | 14 14 29 63 Greatest Support 56 | 40 40 40 56 Greatest Overweight (x) 5 | . 1 5 4 Average Overweight (x) . | . . . . Largest Inventory Capacity 20 | 8 8 8 20 Average Capacity 9 | 7 8 5 11 Most Carried 20 | 5 7 6 20 Average Carried 5 | 1 2 4 6 Final Capacity 20 | 8 8 5 20 Final Carried 18 | 1 2 1 18 Class Distribution -------------------- 69% | Mutant 24% | Derelict-Mutant 6% | Scrapper Dominant Class ---------------- Mutant | -10/Materials Mutant | -10/Subcaves Mutant | -7/Scraptown Resources | -11 -10 -10 -7 ----------- Run | Yrd Mat Sub Scr Matter Collected 1463 | 272 9 706 476 Remotely . | . . . . Salvage Created 723 | 85 53 320 265 Parts 58 | 3 3 41 11 Haulers Intercepted . | . . . . Recyclers Shooed . | . . . . Parts Field Recycled . | . . . . Retrieved Matter . | . . . . Parts Self-Destructed 20 | . . 20 . Prevented . | . . . . Kills | -11 -10 -10 -7 ------- Run | Yrd Mat Sub Scr Combat Hostiles Destroyed 23 | . 2 15 6 Guns 11 | . 2 9 . Cannons 11 | . . 6 5 Classes Destroyed 8 | 1 2 1 4 Recycler 1 | 1 . . . Swarmer 7 | . 1 6 . Grunt 1 | . 1 . . Subdweller 9 | . . 9 . Federalist 2 | . . . 2 Ranger 1 | . . . 1 Guru 1 | . . . 1 Scrapper 2 | . . . 2 Best Kill Streak 4 | 1 2 4 3 Combat Bots Only 4 | . 2 4 3 Max Kills in Single Turn 2 | 1 1 2 1 Gunslinging . | . . . . Exploded . | . . . . Melee . | . . . . Uniques/NPCs Destroyed . | . . . . Combat | -11 -10 -10 -7 -------- Run | Yrd Mat Sub Scr Hostile Shots Fired 174 | . . 117 57 Missed 51 | . . 41 10 Hits 123 | . . 76 47 Projectile 123 | . . 76 47 AOE 2 | . . 2 . Critical Strikes 5 | . . 3 2 Damage Taken 2276 | . . 1463 813 Core 255 | . . 126 129 Absorbed by Shields . | . . . . Core Remaining (%) 100 | 100 . . . Volleys Fired 137 | 4 3 109 21 Largest 2 | 2 2 2 2 Hottest 110 | 70 70 110 80 Shots Fired 257 | 8 6 201 42 Gun 146 | 8 6 131 1 Cannon 111 | . . 70 41 Launcher . | . . . . Special . | . . . . Kinetic 225 | 4 3 176 42 Thermal 32 | 4 3 25 . Explosive . | . . . . Electromagnetic . | . . . . Robot Hit Streak 14 | 2 2 14 8 Robot Miss Streak 6 | 1 2 6 2 Penetration Max 1 | . . . 1 Secondary Targets . | . . . . Shots Hit Robots 93 | 4 2 62 25 Core Hits 35 | 2 2 23 8 Critical Kills . | . . . . Critical Parts Destroyed 5 | . . 1 4 Critical Strikes 8 | . . 2 6 Destroy 5 | . . 1 4 Blast 3 | . . 1 2 Melee Attacks . | . . . . Impact . | . . . . Slashing . | . . . . Piercing . | . . . . Sneak Attacks . | . . . . Combat Hostiles . | . . . . Follow-up Attacks . | . . . . Damage Inflicted 2040 | 49 24 1223 744 Guns 698 | 49 24 599 26 Cannons 1342 | . . 624 718 Explosions . | . . . . Melee . | . . . . Ramming . | . . . . Kinetic 1937 | 36 . 1157 744 Thermal 103 | 13 24 66 . Explosive . | . . . . Electromagnetic . | . . . . Impact . | . . . . Slashing . | . . . . Piercing . | . . . . Highest Corruption . | . . . . Average Corruption . | . . . . Corruption Purged . | . . . . Corruption Blocked . | . . . . Overload Shots . | . . . . Overflow Damage 33 | . . . 33 Projectiles 33 | . . . 33 Explosions . | . . . . Melee . | . . . . Knockbacks 19 | . . 11 8 Impact . | . . . . Kinetic 18 | . . 11 7 Secondary 1 | . . . 1 Self-Inflicted Damage . | . . . . Shots . | . . . . Rammed . | . . . . Targets Rammed . | . . . . Kicked . | . . . . Crushed . | . . . . Highest Temperature 337 | 36 18 299 337 Average Temperature 91 | 19 9 132 95 Received Heat Transfer 1379 | . . 897 482 Effects 1 | . . . 1 Energy Bleed 1 | . . . 1 Siege Activations . | . . . . Martial Activations . | . . . . Shielding Activations . | . . . . Robots Disrupted . | . . . . Combat Hostiles . | . . . . Robots Corrupted 1 | . . . 1 Combat Hostiles 1 | . . . 1 Parts Fried . | . . . . Impact Corruptions 1 | . . . 1 Robots Melted . | . . . . Combat Hostiles . | . . . . Parts Melted 1 | . . 1 . Heat Transferred 148 | 37 74 37 . Parts Sabotaged . | . . . . Parts Stolen . | . . . . Parts Stripped . | . . . . Power Chain Reactions . | . . . . Alert | -11 -10 -10 -7 ------- Run | Yrd Mat Sub Scr Maximum Alert Level . | . . . . Low Security (%) 100 | 100 100 . . Level 1 . | . . . . Level 2 . | . . . . Level 3 . | . . . . Level 4 . | . . . . Level 5 . | . . . . High Security . | . . . . Max Security . | . . . . Peak Influence 30 | 5 30 . . Initial . | . . . . Average 3 | . 4 . . Influence Increases 340 | 5 40 295 . Destroy 0b10 Robot/C 160 | . 40 120 . Destroy 0b10 Robot/NC 5 | 5 . . . Destroy Leader 10 | . . 10 . Lose Combat Pursuer 165 | . . 165 . Influence Decreases 340 | 5 40 172 123 Entered New Map 123 | . . . 123 Time Decay 147 | 5 40 102 . Lost Part 70 | . . 70 . Squads Dispatched 1 | . 1 . . Investigation . | . . . . Extermination . | . . . . Reinforcement 1 | . 1 . . Assault . | . . . . Garrison . | . . . . Intercept . | . . . . Searches Triggered . | . . . . Construction Impeded . | . . . . Haulers Reinforced . | . . . . Active Scanning Responses . | . . . . Cargo Convoy Interrupts . | . . . . Stealth | -11 -10 -10 -7 --------- Run | Yrd Mat Sub Scr Distress Signals 1 | . 1 . . Communications Jammed . | . . . . Distress Signals . | . . . . Times Spotted 45 | . 5 21 19 Peak Tracking Total 5 | . 2 5 3 Tactical Retreats 5 | . . 5 . Traps | -11 -10 -10 -7 ------- Run | Yrd Mat Sub Scr Traps Triggered 4 | . 2 2 . Indirectly . | . . . . Trap Hack Attempts . | . . . . Triggered . | . . . . Disarmed . | . . . . Reprogrammed . | . . . . Reused . | . . . . Traps Extracted . | . . . . Installed 1 | . . 1 . Triggered . | . . . . Machines | -11 -10 -10 -7 ---------- Run | Yrd Mat Sub Scr Machines Disabled 4 | . . 3 1 Max in Single Turn 1 | . . 1 1 Machines Repaired . | . . . . Machines Dismantled . | . . . . Machines Sabotaged . | . . . . Overloaded Fab Kills . | . . . . Hacking | -11 -10 -10 -7 --------- Run | Yrd Mat Sub Scr Machines Accessed 9 | . . 3 6 Terminals . | . . . . Fabricators . | . . . . Repair Stations . | . . . . Recycling Units . | . . . . Scanalyzers . | . . . . Garrison Access . | . . . . Total Hacks 59 | . . 15 44 Successful 59 | . . 15 44 Failed . | . . . . Catastrophic . | . . . . Database Lockouts . | . . . . Manual . | . . . . Terminals . | . . . . Fabricators . | . . . . Repair Stations . | . . . . Recycling Units . | . . . . Scanalyzers . | . . . . Garrison Access . | . . . . Terminal Hacks 59 | . . 15 44 Record 49 | . . 13 36 Robot Analysis 8 | . . . 8 Open Door 1 | . . 1 . Proto ID Catalog 1 | . . 1 . Fabricator Hacks . | . . . . Repair Station Hacks . | . . . . Recycling Unit Hacks . | . . . . Scanalyzer . | . . . . Garrison Access Hacks . | . . . . Unauthorized Hacks . | . . . . Terminals . | . . . . Fabricators . | . . . . Repair Stations . | . . . . Recycling Units . | . . . . Scanalyzers . | . . . . Garrison Access . | . . . . Data Cores Recovered . | . . . . Used . | . . . . Hacking Detections . | . . . . Full Trace Events . | . . . . Feedback Events . | . . . . Feedback Blocked . | . . . . Robot Schematics Acquired . | . . . . Robots Built . | . . . . Authchips . | . . . . Time . | . . . . Total Robot Build Rating . | . . . . Part Schematics Acquired . | . . . . Parts Built . | . . . . Authchips . | . . . . Time . | . . . . Total Part Build Rating . | . . . . Parts Repaired . | . . . . Time . | . . . . Parts Recycled . | . . . . Recycled Matter . | . . . . Retrieved Matter . | . . . . Retrieved Components . | . . . . Parts Scanalyzed . | . . . . Part Schematics Acquired . | . . . . Parts Damaged . | . . . . Bothacking | -11 -10 -10 -7 ------------ Run | Yrd Mat Sub Scr Used RIF Installer . | . . . . Robots Hacked . | . . . . Non-combat . | . . . . Combat . | . . . . Robot Hacks Applied . | . . . . Relay Couplers Released . | . . . . Fabnet Peak Effective % . | . . . . Robots Rewired . | . . . . Allies Hacked . | . . . . Hacks Repelled . | . . . . Allies | -11 -10 -10 -7 -------- Run | Yrd Mat Sub Scr Total Allies . | . . . . Largest Group . | . . . . Highest-Rated Group . | . . . . Highest-Rated Ally . | . . . . Total Orders . | . . . . Ally Attacks . | . . . . Total Damage . | . . . . Kills . | . . . . Allies Corrupted . | . . . . Allies Melted 9 | . . . 9 Intel | -11 -10 -10 -7 ------- Run | Yrd Mat Sub Scr Active Infowar (turns) . | . . . . Robot Analysis Total 8 | . . . 8 Derelict Logs Recovered 5 | . . 2 3 Drone Launches . | . . . . Drone Recoveries . | . . . . Exploration | -11 -10 -10 -7 ------------- Run | Yrd Mat Sub Scr Turns Passed 7766 | 86 232 3304 4144 Spaces Moved 3890 | 48 135 1736 1971 Core 50 | 13 4 33 . Treads 3721 | 35 131 1703 1852 Legs 119 | . . . 119 Wheels . | . . . . Hover . | . . . . Flight . | . . . . Fastest Speed 50 | 50 100 150 160 Average Speed 182 | 130 158 162 203 Slowest Speed 400 | 160 160 300 400 Overloaded Moves . | . . . . Propulsion Burnouts . | . . . . Robots Hopped . | . . . . Potential Cave-ins . | . . . . Cave-ins Triggered . | . . . . Exploration Rate (%) 51 | 4 29 83 90 Regions Visited 3 Branch Regions 2 Pre-discovered Areas 2 | . . 1 1 Known Exits Taken . | . . . . Unknown Exits Taken 3 | 1 1 1 . Scrap Searched 7 | . . 3 4 Spaces Dug . | . . . . Terrain Destroyed 11 | . . 3 8 Melee . | . . . . Projectile 11 | . . 3 8 AOE . | . . . . Terrain Rammed . | . . . . Walls Destroyed . | . . . . Machines Disabled . | . . . . Actions | -11 -10 -10 -7 --------- Run | Yrd Mat Sub Scr Total 4311 | 64 148 2035 2064 Wait 157 | . . 152 5 Move 3887 | 47 134 1735 1971 Hop . | . . . . Pick Up 58 | 7 6 11 34 Fast Attach 3 | . . 2 1 Attach 25 | 6 5 7 7 Detach 1 | . . . 1 Swap 10 | . . 4 6 Drop 27 | . . 9 18 Fire 137 | 4 3 109 21 Melee . | . . . . Ram . | . . . . Kick . | . . . . Crush . | . . . . Escape Stasis . | . . . . Rewire . | . . . . Trap 1 | . . 1 . Miscellaneous 5 | . . 5 . Route ------- -11/Scrapyard -10/Materials -10/Subcaves (discovered 4 exits: [*Mat x2] / *Rec / *Scr) -7/Scraptown (discovered 2 exits: *Fac x2) History --------- Turn | Location | Event 4 | -11/Scrapyard | Discovered new exit (range 16) 87 | -11/Scrapyard | Entered Materials 88 | -10/Materials | Met a group of wandering Federalists 304 | -10/Materials | Build established: Mutant 304 | -10/Materials | Discovered new exit (range 9) 319 | -10/Materials | Entered Subcaves 320 | -10/Subcaves | Continued accompanying wandering Federalists (5) 351 | -10/Subcaves | Discovered new exit (range 12) 493 | -10/Subcaves | A swath of the cavern ceiling suddenly collapsed 545 | -10/Subcaves | Shifting Twisted Machinery released Sub. Monowheel 586 | -10/Subcaves | Shifting Twisted Machinery released Barrage Gun 852 | -10/Subcaves | Shifting Twisted Machinery released Scrap Shield 855 | -10/Subcaves | Shifting Twisted Machinery released Sub. Machine Gun 857 | -10/Subcaves | Discovered new exit (range 15) 1211 | -10/Subcaves | Disturbed a concealed Subdweller 1280 | -10/Subcaves | Visited Clippyterm 1285 | -10/Subcaves | Identified exit to Recycling 1285 | -10/Subcaves | Learned Research machine intel 1382 | -10/Subcaves | Learned Materials interactive machine intel 1532 | -10/Subcaves | Visited 4L-MR0's lab 1550 | -10/Subcaves | Found Powered Cannon 2309 | -10/Subcaves | Build established: Derelict-Mutant 3280 | -10/Subcaves | Attached Powered Cannon, gained temporary slot: Power 3296 | -10/Subcaves | Core integrity fell below 50% 3326 | -10/Subcaves | Lost 7 parts (1p2n1u3w) 3552 | -10/Subcaves | Build established: Mutant 3623 | -10/Subcaves | Entered Scraptown 3712 | -7/Scraptown | Heard Great Nut preacher, LISTEN AND RECITE! 4048 | -7/Scraptown | Visited Junk Repository 4101 | -7/Scraptown | Visited Cave Peace 4146 | -7/Scraptown | Visited IN-MT5's Study 4186 | -7/Scraptown | Visited Cyclists 4199 | -7/Scraptown | Visited SPCMW 4253 | -7/Scraptown | Visited Awakened 4388 | -7/Scraptown | Scanned Subdweller tech in exchange for log data 4391 | -7/Scraptown | Learned location of Extension (-5) 4392 | -7/Scraptown | Learned Factory garrison access intel 4394 | -7/Scraptown | Learned location of 2 exits from Lower Caves 4413 | -7/Scraptown | Discovered new exit (range 13) 4733 | -7/Scraptown | Visited UFD Registry 4733 | -7/Scraptown | Registered with UFD as "Matrixtube" 4788 | -7/Scraptown | Visited Derelict Rescue Squad 4797 | -7/Scraptown | Found DRS Beacon 4827 | -7/Scraptown | Visited LU-1G1's Boring Crew 5027 | -7/Scraptown | Visited DA-N13 Charitable Foundation 5126 | -7/Scraptown | Visited Analyses Database 5153 | -7/Scraptown | Visited Curators Association 5209 | -7/Scraptown | Visited Observation Area 5245 | -7/Scraptown | Visited Scrap Suit Storage 5281 | -7/Scraptown | Visited Chapter 10 5345 | -7/Scraptown | Found Scrap Suit 5355 | -7/Scraptown | Found Scrap Suit 5426 | -7/Scraptown | Visited Infowarlord's Domain 5681 | -7/Scraptown | Build established: Scrapper 6154 | -7/Scraptown | Build established: Mutant 7044 | -7/Scraptown | Found DCF Scrap (27 items) 7221 | -7/Scraptown | Met Optimus 7221 | -7/Scraptown | Accepted into 0bPrime 7430 | -7/Scraptown | Build established: Derelict-Mutant 7438 | -7/Scraptown | Civil war broke out across Scraptown 7512 | -7/Scraptown | Identified exit to Factory 7593 | -7/Scraptown | Lost 8 allies 7678 | -7/Scraptown | Lost 4 allies 7743 | -7/Scraptown | Optimus destroyed in the chaos of civil war 7761 | -7/Scraptown | Core integrity fell below 20% 7767 | -7/Scraptown | Destroyed by SG-DN5(j) with Overtuned Pulse Rifle Last Messages --------------- 07680_ 3L-LIB(j) destroyed. 07681_ Bolt penetrates VF-5GM(j). 07683_ VF-5GM(j) destroyed. 07687_ O6-LBA(E) cannibalizes Ovr. Treads to repair Ovr. Treads. 07690_ Acquired Corrupted Ovr. Treads. 07732_ Penetrated by Bolt. 07735_ Bolt penetrates Machine. 07735_ Slug penetrates Machine. 07737_ Penetrated by Bolt. 07738_ QS-T3Q(h) destroyed. 07743_ ANNOUNCEMENT: The traitor Optimus has been dealt with. Put down any remaining collaborators. 07758_ SG-DN5(j) suffers critical hit (Destroy). 07758_ Destroyed Scrap Suit. 07758_ Adv. Assault Cannon destroyed. 07760_ Critical hit (Burn: +50). 07761_ Med. Treads destroyed. 07762_ Slug penetrates Machine. 07762_ Slug Cannon destroyed. 07765_ TD-A5W(j): "Down with Optimus!" Map ----- +----------------------------------------------------+ | #"! "#" "##%=##]"* "=#??????????????? | | ## ## ""##!!##""= ""##?????????????? | | # # ##!=="[![ "#?????????????? | | ### ########### ####!=*"#%##########?????????????? | | ### ########### ####!%%#%!##########?????????????? | | """ """""""" ""! %="[!*="["## """"#?????????????? | | !=!![!%%%**"## " "#?????????????? | | *%! [&%*[!!!*!!"## X"#?????????????? | | = !=!=!%!%[!"## "#?????????????? | | *%!![ !!"## ""#?????????????? | | =[!!= !%= " "#?????????????? | | """"""""""""" "" "!! !""" """"#?????????????? | | """"""""""""" """""%!* "## """"#?????????????? | | # ################""% "#########?????????????? | | ##????????#" [ "#########?????????????? | | X"#????????#"" [= ## ] #?????????????? | | " "" ##????????#" ![=* ## =% #?????????????? | | "" X"#?????####""*%[%!"## [ ![ #?????????????? | | " ########=!#"*[=!=!=##%=!*###?????????????? | | "" =%!!%![!%!!%%!!*!%!!! ###?????????????? | | "" ![==!=[%!*[!=!! ##*=[/ =#?????????????? | | " #########!#["=!=!% ##/[!% *#?????????????? | | "" ""#??????###"==*[*["## ]| #?????????????? | | " "" ##????????#""[%[=!%#########?????????????? | | X"#????????#""*!=*!"#?????????????????????? | | ##????????#""!%=[@ #?????????????????????? | | # ################ " !* #?###?????????????????? | | """""""""""""""""""" !!! ##" # ###????????????? | | """""""""""""""""""" ![%= " #????????????? | | [=!![![%=! ##" #??????????? | | ==*![!!%![! #?" ##??????????? | | !!!=[=!!==!%! ;?? ###???????????? | | &====!=%%!=[!!=##? ???????????? | | %!%[![%%*=!=/!%!#?? ###??????????? | | """"" """""""""="*!"""""!=%##?? #???????????? | | ##### ###########!######[!!#????######???????????? | | # #??# *[ ##=!%%?????????????????????? | | # #??# # [ # ##!%%#?????????????????????? | | # #????# #??# jj#?????????????????????? | | #"" ""#????# #??# #?????????????????????? | | #" "#????#######??# % #?????????????????????? | | #"" ""#?????????????# !=############??????????? | | #" "#?????????????# #??????????? | | #"" ""#?????????????# ##??????????? | | #" "#?????????????# #??????????? | | #" " && "#?????????????# #??????????? | | #""""""""#?????????????# #??????????? | | ##########?????????????# ############??????????? | | ######################## #####?????????????????? | | """##"""##"""##"""##"|"# """"#?????????????????? | +----------------------------------------------------+ Best States ------------- Heat Dissipation 25 Energy Generation 18 Energy Capacity 290 Matter Stores 300 Matter Capacity 300 Sight Range 16 Terrain Scan Density 10 Armor Coverage 800 Evasion (%) 50 Recoil Reduction 2 Salvage Targeting 1 Defensive Hacking 11 Authchip Count 1 Item Schematics ----------------- None Robot Schematics ------------------ None Fabricated ------------ Nothing Repaired ---------- Nothing Alien Tech Used ----------------- None Achievements -------------- None Challenges ------------ None Game ------ Seed GravmagWeaponsRouter Manual? 0 Play Time 00:40:47 Cumulative 62.7 hours Start 2025.05.07 @ 14:37:59 End 2025.05.07 @ 15:18:13 Sessions 1 Manual Loads 0 Difficulty Rogue Special Mode None Game No. 114 Rogue 114 Adventurer 0 Explorer 0 Win Type - Total 1 Types 1/0/0/0/0/0/0/0/0/0 Lore% 53 Gallery% 43 Achievement% 40 Wizard Run 0 Options --------- Layout 0 ASCII 0 Keyboard 0 Movement Mouse Keybinds 0 Fullscreen 1 Font 16/SmallcapsGlow Map View 75x55 Zoom Use 0% Tactical HUD 1 Map Filters NONE Filters NONE Steam 1 RUN: 0349f1b8-b132-48ac-bfb8-18fdda0b3fae